bitfinex/quotes_ETHUSD_20251212
["timestamp","ask_amount","ask_price","bid_price","bid_amount"]
[1765500444290,0.4673,3232.7,3232.2,0.58047529]
[1765500444492,0.4258,3232.3,3232.0,3.09402687]
[1765500444686,0.4216,3232.0,3231.6,6.88437871]
[1765500444994,0.4216,3232.0,3231.7,0.58047529]
[1765500445297,3.09339412,3232.7,3231.9,0.4858]
[1765500445484,3.58239412,3232.7,3232.2,0.4858]
[1765500445885,3.58239412,3232.7,3232.2,0.9365]
[1765500445886,0.489,3232.7,3232.2,0.9365]
[1765500446405,0.489,3232.7,3232.2,4.03035895]
[1765500446622,0.489,3232.7,3232.3,0.4507]
[1765500446985,0.9563,3232.7,3232.1,3.73033131]
[1765500447184,4.04969848,3232.7,3232.1,3.73033131]
[1765500448025,0.9563,3232.7,3232.1,3.73033131]
[1765500448339,0.4673,3232.7,3232.1,3.73033131]
[1765500449324,0.4673,3232.7,3232.1,4.46167856]
[1765500449626,0.4673,3232.7,3232.1,1.36774725]
[1765500449627,3.56069759,3232.7,3232.1,1.36774725]
[1765500449811,3.56069759,3232.7,3232.1,0.6364]
[1765500450114,3.09339759,3232.7,3232.1,0.1857]
[1765500450319,0.4673,3232.6,3232.0,3.58304451]
[1765500450510,3.09339759,3232.7,3232.1,3.73034275]
[1765500450719,0.02084562,3232.8,3232.1,3.73034275]
[1765500450885,3.11413935,3232.8,3232.2,0.42193428]
[1765500451087,3.11413935,3232.8,3232.0,1.06947529]
[1765500451088,3.09348512,3232.6,3232.0,1.06947529]
[1765500451286,3.09348512,3232.6,3232.1,0.58047529]
[1765500451586,0.4258,3232.1,3231.6,0.4507]
[1765500452197,0.4258,3232.1,3231.8,0.58047529]
[1765500452417,0.4258,3232.1,3231.9,0.58047529]
[1765500452782,0.0047,3232.0,3231.6,0.4507]
[1765500452988,0.0047,3232.0,3231.5,1.06947529]
[1765500453212,0.0047,3232.0,3231.6,3.510833]
[1765500453515,0.0047,3232.0,3231.6,0.86710931]
[1765500453705,0.0047,3232.0,3231.6,3.96151445]
[1765500453909,0.0047,3232.0,3231.7,0.58047529]
[1765500454110,0.0047,3232.0,3231.6,0.86710931]
[1765500454310,0.4212,3231.7,3230.9,3.09509305]
[1765500454522,0.0593,3231.6,3230.8,0.9397]
[1765500454821,0.0593,3231.6,3230.5,3.37950127]
[1765500454822,5.74321911,3231.5,3230.6,0.9397]
[1765500455018,0.4673,3231.4,3230.6,0.489]
[1765500455222,3.09472967,3231.3,3230.6,1.06947529]
[1765500455418,3.56196076,3231.4,3230.7,0.58047529]
[1765500455592,0.4673,3231.4,3230.7,1.03117529]
[1765500456724,0.4673,3231.4,3230.8,0.4507]
[1765500457418,0.4673,3231.4,3230.9,0.58047529]
[1765500457986,0.4673,3231.4,3230.8,0.58047529]
[1765500458213,3.5619353,3231.4,3230.8,0.58047529]
[1765500459416,3.5619353,3231.4,3230.6,0.91235999]
[1765500459625,0.4673,3231.4,3230.8,0.58047529]
[1765500459828,3.56193822,3231.4,3230.8,0.58047529]
[1765500462534,0.6531,3230.9,3230.5,0.001]
[1765500462704,0.1768,3230.9,3230.5,0.001]
[1765500462900,0.4934,3230.8,3230.5,0.001]
[1765500463119,0.1768,3230.9,3230.5,0.001]
[1765500463627,9.33156754,3231.1,3230.5,0.001]
[1765500463826,9.33156754,3231.1,3230.5,0.4659]
[1765500464242,12.42651597,3231.1,3230.5,0.4659]
[1765500464439,12.42651597,3231.1,3230.5,0.001]
[1765500464627,0.4934,3231.0,3230.5,0.001]
[1765500465127,0.43,3230.6,3230.5,0.001]
[1765500465617,5.33950904,3231.0,3230.5,0.4883]
[1765500465816,0.4934,3230.9,3230.5,0.4883]
[1765500466325,0.4934,3230.9,3230.5,0.001]
[1765500466326,0.43,3230.6,3230.5,0.001]
[1765500466734,0.4934,3230.9,3230.5,0.001]
[1765500467033,0.489,3231.0,3230.5,0.9532]
[1765500467333,9.33135562,3231.3,3230.9,0.4873]
[1765500467505,0.489,3231.2,3230.9,0.4873]
[1765500468302,0.489,3231.2,3230.9,0.9522]
[1765500468506,0.489,3231.2,3230.9,0.4873]
[1765500468710,0.43,3231.0,3230.5,0.001]
[1765500469049,0.6228,3230.6,3230.5,0.001]
[1765500469413,4.21160023,3230.6,3230.5,0.001]
[1765500469847,1.1162,3230.6,3230.5,0.001]
[1765500470549,4.21160023,3230.6,3230.5,0.001]
[1765500470845,5.25598216,3230.6,3230.5,0.001]
[1765500471054,4.21160023,3230.6,3230.5,0.001]
[1765500474335,3.26450023,3230.6,3230.5,0.001]
[1765500474641,3.09540023,3230.6,3230.5,0.4883]
[1765500474941,3.52540023,3230.6,3230.5,0.001]
[1765500475235,0.4928,3231.0,3230.5,0.4883]
[1765500475434,0.489,3230.9,3230.5,0.4883]
[1765500475638,3.58420765,3230.9,3230.5,0.4883]
[1765500476642,3.58420765,3230.9,3230.5,0.9532]
[1765500477037,0.43,3230.6,3230.5,0.001]
[1765500477630,4.01820023,3230.6,3230.5,0.001]
[1765500480453,4.42370423,3230.6,3230.5,0.001]
[1765500480657,4.01820023,3230.6,3230.5,0.001]
[1765500481145,4.14214534,3230.6,3230.5,0.001]
[1765500481346,4.86588242,3230.6,3230.5,0.001]
[1765500481743,5.23093731,3230.6,3230.5,0.001]
[1765500483950,6.2169166,3230.6,3230.5,0.001]
[1765500484152,6.2169166,3230.6,3229.9,0.001]
[1765500484153,0.0049,3230.2,3229.9,0.001]
[1765500484446,8.34137695,3230.0,3229.9,0.001]
[1765500484639,9.22451465,3230.0,3229.9,0.001]
[1765500484944,9.71791465,3230.0,3229.9,0.001]
[1765500485947,12.81388988,3230.0,3229.9,0.001]
[1765500487221,13.39436517,3230.0,3229.9,0.001]
[1765500489522,0.0091,3229.4,3228.2,0.4649]
[1765500489717,0.49,3229.3,3228.2,0.4649]
[1765500489917,0.9834,3229.3,3228.2,0.4649]
[1765500490122,9.29022666,3229.2,3228.2,0.4649]
[1765500490321,9.78362666,3229.2,3228.1,0.4649]
[1765500490532,0.4934,3229.1,3228.1,0.4649]
[1765500490749,0.4934,3229.1,3228.1,0.4149]
[1765500490926,0.405504,3229.0,3228.1,0.4149]
[1765500491121,0.49,3228.9,3228.1,0.4149]
[1765500491353,0.9834,3228.9,3228.1,0.4149]
[1765500492118,3.09702994,3228.9,3228.1,0.4149]
[1765500492425,3.09702994,3228.9,3228.8,0.4873]
[1765500492638,7.17745988,3228.9,3228.0,0.76617529]
[1765500492950,0.4589,3228.8,3228.0,0.1857]
[1765500493149,0.4813,3228.1,3227.4,0.1877]
[1765500493351,0.49,3228.0,3227.0,3.28652307]
[1765500493647,0.49,3228.0,3227.5,0.4882]
[1765500494350,0.4813,3227.6,3227.1,0.63854694]
[1765500494552,0.9713,3227.6,3227.0,0.6759]
[1765500494750,0.9713,3227.6,3227.1,0.4882]
[1765500495050,0.9713,3227.6,3227.0,0.1877]
[1765500495434,0.0047,3227.1,3226.4,0.1956]
[1765500495637,0.49,3227.0,3226.4,0.1956]
[1765500496046,0.49,3227.0,3226.4,0.57245074]
[1765500496255,3.58894511,3227.0,3226.4,0.57245074]
[1765500496556,0.1942,3226.9,3226.3,0.4733]
[1765500496971,3.58894511,3227.0,3226.3,0.4733]
[1765500497261,3.09867723,3227.2,3226.0,0.1877]
[1765500497262,6.1967467,3227.5,3226.0,0.1877]
[1765500497556,1.385504,3227.4,3226.1,0.4733]
[1765500497766,0.405504,3227.2,3226.1,0.4733]
[1765500498155,0.4846,3227.1,3226.1,0.4733]
[1765500498359,6.68770684,3227.0,3226.1,1.05377529]
[1765500498762,0.1942,3226.9,3226.0,0.1877]
[1765500499076,0.405504,3226.8,3225.5,0.001]
[1765500499283,1.09369468,3226.8,3225.7,0.4733]
[1765500499440,0.405504,3226.4,3225.8,0.0008]
[1765500499644,0.4846,3226.7,3225.5,0.001]
[1765500499846,0.1942,3226.9,3225.6,0.0008]
[1765500500047,0.491,3226.8,3225.7,0.6675689]
[1765500500372,3.09904549,3226.8,3225.8,3.1008062]
[1765500500553,0.491,3226.7,3225.8,3.5741062]
[1765500500756,0.491,3226.7,3225.9,0.4733]
[1765500501069,3.09885342,3227.0,3226.6,0.4769]
[1765500501269,0.491,3226.9,3225.9,0.4733]
[1765500501572,0.9756,3226.9,3225.9,0.4733]
[1765500501741,0.491,3226.9,3225.9,0.4733]
[1765500501942,0.491,3226.9,3225.8,0.58047529]
[1765500502172,0.4846,3226.8,3225.8,0.58047529]
[1765500502378,0.4846,3226.8,3225.7,0.58047529]
[1765500502548,6.19828306,3226.7,3225.8,0.58127529]
[1765500502747,6.91567137,3226.7,3225.8,0.58127529]
[1765500503071,7.40027137,3226.7,3225.8,1.05457529]
[1765500503274,0.4846,3226.6,3225.8,0.58127529]
[1765500503447,0.491,3226.5,3225.8,0.0008]
[1765500503647,0.491,3226.5,3225.6,0.0008]
[1765500503865,0.4846,3226.4,3225.6,0.0008]
[1765500504176,0.71738831,3226.7,3225.6,0.4741]
[1765500504364,3.28900517,3227.9,3226.6,0.4769]
[1765500504365,3.09808538,3227.8,3226.6,0.4769]
[1765500504567,0.93029457,3228.2,3227.7,0.6725]
[1765500504876,0.491,3228.2,3227.5,0.1956]
[1765500505457,6.68641105,3228.2,3227.5,0.1956]
[1765500505665,0.66864111,3228.1,3227.5,0.1956]
[1765500505979,0.66864111,3228.1,3227.5,0.6689]
[1765500506882,6.86429765,3228.1,3226.8,0.58047529]
[1765500507182,7.34889765,3228.1,3227.2,0.1956]
[1765500507383,0.4846,3228.0,3227.2,0.1956]
[1765500507551,1.04467259,3227.9,3226.9,0.4733]
[1765500507750,1.23887259,3227.9,3226.9,0.4733]
[1765500507973,0.4846,3227.8,3226.9,0.4733]
[1765500508189,0.492,3227.7,3226.9,0.4733]
[1765500508753,3.09827735,3227.6,3226.9,0.4733]
[1765500508947,3.50576509,3227.6,3226.7,0.58047529]
[1765500509172,7.08864244,3227.6,3226.6,0.4733]
[1765500509678,0.4846,3227.5,3226.6,1.05377529]
[1765500510053,0.4846,3227.5,3226.6,0.4733]
[1765500510252,0.4846,3227.5,3226.7,0.58047529]
[1765500510452,1.24266424,3227.5,3226.6,0.4733]
[1765500510782,3.09846935,3227.4,3226.6,3.57252812]
[1765500510983,0.492,3227.3,3226.6,3.57252812]
[1765500511189,0.492,3227.3,3226.7,0.4733]
[1765500511558,0.492,3227.3,3227.2,0.4769]
[1765500512854,6.60282674,3227.2,3225.5,0.001]
[1765500513055,6.60282674,3227.2,3225.9,0.4733]
[1765500513056,0.0108,3226.8,3225.9,0.4733]
[1765500513272,0.492,3226.7,3225.9,0.4733]
[1765500513667,0.492,3226.7,3225.5,0.001]
[1765500513869,0.492,3226.7,3225.9,0.58047529]
[1765500514477,0.492,3226.7,3226.0,0.58047529]
[1765500514679,0.492,3226.7,3225.9,0.4733]
[1765500514874,0.492,3226.7,3225.6,0.4733]
[1765500515078,3.59116439,3226.7,3225.6,0.4733]
[1765500515282,0.492,3226.7,3225.6,0.4733]
[1765500516980,0.492,3226.7,3225.7,6.2002046]
[1765500517176,0.492,3226.7,3225.8,0.66735046]
[1765500517381,0.492,3226.7,3225.8,1.14065046]
[1765500517590,0.492,3226.7,3225.9,0.4733]
[1765500517762,0.492,3226.8,3226.6,0.4769]
[1765500517966,0.492,3226.8,3225.9,0.4733]
[1765500518468,4.51348836,3227.5,3226.7,0.5204]
[1765500518669,7.62488754,3227.4,3226.0,0.1956]
[1765500518881,6.19732274,3227.2,3226.0,0.1956]
[1765500519080,6.19732274,3227.2,3226.0,0.6689]
[1765500519284,0.4846,3227.1,3226.0,3.76871337]
[1765500519488,0.492,3227.0,3226.1,0.4733]
[1765500519693,0.492,3227.0,3226.1,0.85017134]
[1765500519989,3.09866137,3227.2,3226.2,0.4733]
[1765500520190,0.492,3226.9,3226.2,0.4733]
[1765500520575,0.492,3226.9,3226.8,0.4769]
[1765500521586,0.492,3226.9,3226.8,0.9502]
[1765500522099,0.492,3226.9,3226.4,0.4733]
[1765500522295,0.492,3226.9,3226.8,0.4769]
[1765500522697,0.4846,3227.6,3226.8,0.9502]
[1765500523000,0.492,3227.5,3226.8,0.9502]
[1765500523202,3.59041778,3227.5,3226.8,0.9716]
[1765500523372,3.59041778,3227.5,3226.9,0.4947]
[1765500523969,3.59041778,3227.5,3225.5,3.10127907]
[1765500523970,0.4702,3227.0,3225.5,3.10127907]
[1765500524201,0.4777,3227.4,3226.5,0.58047529]
[1765500524502,0.4777,3227.4,3226.4,0.58047529]
[1765500524676,0.4777,3227.4,3226.5,0.4947]
[1765500525394,3.09856536,3227.3,3226.5,3.59403344]
[1765500525573,3.81524137,3227.3,3226.5,3.59403344]
[1765500525917,3.81524137,3227.3,3226.5,3.09933344]
[1765500526076,0.492,3227.3,3226.6,0.4947]
[1765500527377,6.19732274,3227.2,3226.3,1.07517529]
[1765500527779,0.4777,3227.1,3226.3,1.07517529]
[1765500528280,1.19440227,3227.1,3226.3,1.07517529]
[1765500528497,1.19440227,3227.1,3226.3,0.4947]
[1765500528704,0.4777,3227.0,3226.0,0.6903]
[1765500528908,0.71670227,3227.1,3226.3,3.09946178]
[1765500529078,0.492,3227.0,3226.4,0.4947]
[1765500529712,0.492,3227.0,3226.4,3.59412293]
[1765500529917,3.59085527,3227.0,3226.4,3.59412293]
[1765500530991,0.492,3227.0,3226.9,0.4971]
[1765500533209,0.4702,3227.0,3226.5,1.07517529]
[1765500533588,3.09876826,3227.1,3226.6,0.4947]
[1765500534298,3.09876826,3227.1,3226.3,0.58047529]
[1765500534299,3.09894945,3226.9,3226.3,0.58047529]
[1765500534475,6.1978989,3226.9,3226.0,0.1956]
[1765500534808,0.4674,3226.1,3225.2,0.4947]
[1765500535009,0.0047,3226.0,3225.3,0.492]
[1765500535188,0.0047,3226.0,3225.3,1.07247529]
[1765500535383,0.1999,3225.9,3225.1,0.001]
[1765500535596,0.4486,3225.6,3225.1,0.001]
[1765500536095,1.4183,3225.6,3225.1,0.001]
[1765500536608,4.51849841,3225.6,3225.1,0.001]
[1765500536808,4.04079841,3225.6,3225.1,0.001]
[1765500537103,4.04079841,3225.6,3225.1,0.0493]
[1765500537605,4.51849841,3225.6,3225.1,0.001]
[1765500538215,4.51849841,3225.6,3225.2,0.001]
[1765500538707,5.28035663,3225.6,3225.2,0.001]
[1765500539296,4.80265663,3225.6,3225.2,0.001]
[1765500539483,0.492,3225.6,3225.2,0.001]
[1765500539910,1.4226,3225.6,3225.2,0.001]
[1765500540594,4.04539841,3225.6,3225.2,0.001]
[1765500541500,0.1999,3225.9,3225.5,0.4981]
[1765500541689,3.09981401,3226.0,3225.5,0.4981]
[1765500541895,0.492,3225.9,3225.5,0.4981]
[1765500542209,0.492,3225.9,3225.5,0.9928]
[1765500542404,3.09981401,3226.0,3225.5,0.001]
[1765500542596,3.59199555,3225.9,3225.5,0.001]
[1765500542791,7.3695911,3225.9,3225.5,0.001]
[1765500543131,0.4531,3225.6,3225.5,0.001]
[1765500543629,8.08623371,3225.9,3225.5,0.001]
[1765500543786,8.08653371,3225.9,3225.5,0.001]
[1765500543987,0.4531,3225.6,3225.5,0.001]
[1765500544685,0.492,3225.6,3225.5,0.4981]
[1765500545088,0.492,3225.6,3225.5,0.9928]
[1765500545391,3.09962184,3226.2,3225.5,0.9928]
[1765500545594,0.492,3226.1,3225.5,0.9928]
[1765500545997,0.5,3225.9,3225.5,0.9928]
[1765500546204,0.5,3225.9,3225.5,0.4981]
[1765500546700,3.1000062,3225.8,3225.5,0.4981]
[1765500547021,0.492,3225.7,3225.5,0.4981]
[1765500547609,0.4531,3225.6,3225.5,0.001]
[1765500549219,3.55329841,3225.6,3225.5,0.001]
[1765500549817,0.4531,3225.6,3225.5,0.001]
[1765500550217,4.03069841,3225.6,3225.5,0.001]
[1765500550409,4.79297711,3225.6,3225.5,0.001]
[1765500550609,0.492,3225.6,3225.5,0.4981]
[1765500550788,0.6776,3226.8,3225.5,0.9928]
[1765500550989,6.19828306,3226.7,3225.7,0.4971]
[1765500551192,0.492,3226.6,3225.7,0.4971]
[1765500551425,1.18101831,3226.6,3225.8,0.4947]
[1765500551907,0.492,3226.5,3225.5,0.001]
[1765500552114,0.9697,3226.5,3225.5,0.001]
[1765500552523,0.68901831,3226.6,3225.5,0.4957]
[1765500552718,0.492,3226.5,3225.5,0.4957]
[1765500552916,1.71073014,3226.5,3225.5,0.4957]
[1765500553219,6.19905154,3226.3,3225.5,0.4957]
[1765500553596,6.67985154,3226.3,3225.5,0.4957]
[1765500553797,6.67985154,3226.3,3225.5,0.001]
[1765500554325,0.4808,3226.2,3225.5,0.001]
[1765500554625,1.15998515,3226.1,3225.5,0.001]
[1765500555334,3.09981401,3226.0,3225.5,0.001]
[1765500556726,0.492,3225.9,3225.6,0.4972]
[1765500557222,3.09964636,3226.2,3225.8,0.4651]
[1765500557422,0.492,3226.1,3225.8,0.4651]
[1765500557786,0.492,3226.1,3225.5,0.001]
[1765500558019,0.9579,3226.1,3225.5,0.001]
[1765500558225,0.9579,3226.1,3225.5,0.58147529]
[1765500558721,0.492,3226.1,3225.6,0.58047529]
[1765500558924,6.66476286,3226.4,3225.5,0.4982]
[1765500559089,1.2322693,3226.3,3225.5,3.59847831]
[1765500559294,3.09924409,3226.6,3225.5,3.59847216]
[1765500559494,6.19848818,3226.6,3226.2,0.4651]
[1765500559789,6.19848818,3226.6,3225.6,3.59739841]
[1765500559790,0.492,3226.5,3225.6,3.10019841]
[1765500559995,0.9579,3226.5,3225.5,0.58147529]
[1765500560204,0.71563882,3226.4,3225.5,3.68176773]
[1765500560409,0.71563882,3226.4,3225.5,4.17896773]
[1765500560727,0.492,3226.3,3225.6,0.4972]
[1765500561306,0.71563882,3226.4,3225.6,0.4972]
[1765500561619,0.492,3226.3,3226.2,0.4651]
[1765500562121,0.492,3226.3,3225.6,3.59737141]
[1765500562331,3.09923758,3226.6,3226.2,0.4651]
[1765500562621,3.09923758,3226.6,3226.2,0.6505]
[1765500562854,0.492,3226.5,3226.2,0.4651]
[1765500564007,3.0994297,3226.4,3226.0,0.1854]
[1765500564202,6.1988594,3226.4,3225.5,0.58147529]
[1765500564404,0.71247594,3226.3,3225.5,1.07867529]
[1765500564614,0.71247594,3226.3,3225.5,0.4982]
[1765500564615,1.17837594,3226.3,3225.5,0.4982]
[1765500564808,0.4659,3226.2,3225.5,0.4982]
[1765500565131,0.492,3226.1,3225.5,0.4982]
[1765500565736,0.492,3226.1,3225.5,0.001]
[1765500565933,0.4659,3226.0,3225.5,0.001]
[1765500566233,3.0999101,3225.9,3225.5,0.001]
[1765500566930,3.7581101,3225.9,3225.5,0.001]
[1765500568130,6.8580202,3225.9,3225.5,0.001]
[1765500568530,0.4971,3225.6,3225.5,0.001]
[1765500568724,0.9891,3225.6,3225.5,0.001]
[1765500569234,1.4306,3225.6,3225.5,0.001]
[1765500569532,0.9891,3225.6,3225.5,0.001]
[1765500569741,0.492,3225.6,3225.5,0.4661]
[1765500570712,0.9886,3225.6,3225.5,0.001]
[1765500571102,4.08879841,3225.6,3225.5,0.001]
[1765500571426,0.9886,3225.6,3225.5,0.001]
[1765500571625,0.4966,3225.6,3225.5,0.001]
[1765500571945,0.492,3225.6,3225.5,0.4661]
[1765500572510,3.09992896,3225.9,3225.5,0.4661]
[1765500572709,0.4724,3225.6,3225.5,0.001]
[1765500573031,0.9383,3225.6,3225.5,0.001]
[1765500574348,0.4724,3225.6,3225.5,0.001]
[1765500575140,3.57259841,3225.6,3225.5,0.001]
[1765500577105,3.57259841,3225.6,3225.5,0.4661]
[1765500577106,3.59219841,3225.6,3225.5,0.4661]
[1765500577806,3.10019841,3225.6,3225.5,0.4661]
[1765500578012,3.59219841,3225.6,3225.5,0.4661]
[1765500578743,11.54599452,3225.6,3225.5,0.001]
[1765500579116,11.54599452,3225.6,3225.5,0.4661]
[1765500579117,1.7381622,3225.6,3225.5,0.4661]
[1765500579414,0.492,3225.6,3225.5,0.4661]
[1765500579616,3.10002337,3225.8,3225.5,0.9633]
[1765500579839,0.492,3225.7,3225.6,0.4651]
[1765500580015,0.492,3225.7,3225.5,0.4982]
[1765500580344,0.492,3225.7,3225.6,0.4651]
[1765500580849,5.76933391,3226.2,3225.6,0.4651]
[1765500581050,5.76933391,3226.5,3226.1,0.4651]
[1765500581211,3.0994297,3226.4,3226.1,0.4651]
[1765500581411,0.4724,3226.2,3225.7,0.4972]
[1765500582023,12.43409331,3226.4,3225.7,0.4972]
[1765500582024,0.492,3226.1,3225.7,0.4972]
[1765500582319,0.492,3226.0,3225.7,0.4972]
[1765500582742,3.0994297,3226.4,3225.9,0.4651]
[1765500582950,0.492,3226.3,3225.9,0.4651]
[1765500583250,3.09962184,3226.2,3225.9,0.9224]
[1765500583612,3.09962184,3226.2,3225.5,3.10128325]
[1765500583818,3.09962184,3226.2,3226.1,0.4508]
[1765500584644,4.03952184,3226.2,3225.5,0.001]
[1765500584845,7.13914368,3226.2,3225.6,0.4573]
[1765500585265,4.03952184,3226.2,3225.6,0.4573]
[1765500585464,7.13914368,3226.2,3225.5,0.001]
[1765500586246,4.03952184,3226.2,3225.5,0.001]
[1765500586453,4.03952184,3226.2,3225.5,0.4583]
[1765500586621,4.03952184,3226.2,3225.5,3.55857649]
[1765500587151,4.03952184,3226.2,3225.6,0.4573]
[1765500588242,3.09962184,3226.2,3226.1,0.4508]
[1765500588444,3.59162184,3226.2,3226.1,0.4508]
[1765500588750,4.03992184,3226.2,3225.7,0.4573]
[1765500589360,0.4898,3226.1,3225.5,0.001]
[1765500589730,0.0049,3225.6,3225.5,0.001]
[1765500590036,0.492,3225.6,3225.5,0.001]
[1765500590361,0.9334,3225.6,3225.5,0.001]
[1765500590550,1.4235,3225.6,3225.5,0.001]
[1765500592049,4.52369841,3225.6,3225.5,0.001]
[1765500593155,5.28607618,3225.6,3225.5,0.001]
[1765500593630,11.05596329,3225.6,3225.5,0.001]
[1765500595530,4.79407618,3225.6,3225.5,0.001]
[1765500595725,4.30397618,3225.6,3225.5,0.001]
[1765500595950,4.79597618,3225.6,3225.5,0.001]
[1765500596457,4.79407618,3225.6,3225.5,0.001]
[1765500596658,5.28607618,3225.6,3225.5,0.001]
[1765500597465,4.30397618,3225.6,3225.5,0.001]
[1765500597664,4.79597618,3225.6,3225.5,0.001]
[1765500597869,4.30397618,3225.6,3225.5,0.001]
[1765500598164,4.79597618,3225.6,3225.5,0.001]
[1765500598365,5.28607618,3225.6,3225.5,0.001]
[1765500598539,11.05596329,3225.6,3225.5,0.001]
[1765500600764,5.28607618,3225.6,3225.5,0.001]
[1765500601376,4.79407618,3225.6,3225.5,0.001]
[1765500601576,3.86257618,3225.6,3225.5,0.4518]
[1765500601866,4.03359841,3225.6,3225.5,0.001]
[1765500602382,4.52369841,3225.6,3225.5,0.001]
[1765500603768,4.92920241,3225.6,3225.5,0.001]
[1765500603980,5.76043158,3225.6,3225.5,0.001]
[1765500606057,6.34090687,3225.6,3225.5,0.001]
[1765500608673,5.84890687,3225.6,3225.5,0.001]
[1765500608854,4.37282758,3225.6,3225.5,0.001]
[1765500609055,4.03359841,3225.6,3225.5,0.001]
[1765500609668,4.52369841,3225.6,3225.5,0.001]
[1765500610064,4.03169841,3225.6,3225.5,0.001]
[1765500610276,4.03359841,3225.6,3225.5,0.001]
[1765500610860,3.10019841,3225.6,3225.5,0.001]
[1765500611062,3.59219841,3225.6,3225.5,0.001]
[1765500611253,4.03359841,3225.6,3225.5,0.001]
[1765500611663,4.35457618,3225.6,3225.5,0.001]
[1765500611870,3.59219841,3225.6,3225.5,0.4518]
[1765500612662,6.78029549,3225.9,3225.5,0.4518]
[1765500612908,3.0999101,3225.9,3225.6,0.4697]
[1765500613053,3.09952577,3226.3,3225.8,0.4582]
[1765500613259,0.492,3226.0,3225.9,0.4582]
[1765500613458,3.09952577,3226.3,3225.6,0.4697]
[1765500613668,3.09952577,3226.3,3226.2,0.4582]
[1765500613967,3.59152577,3226.3,3226.2,0.4582]
[1765500614162,7.83740144,3226.3,3225.7,0.1826]
[1765500614478,4.26062263,3226.3,3226.2,0.4582]
[1765500615417,3.09952577,3226.3,3226.2,0.4582]
[1765500615587,3.59152577,3226.3,3226.2,0.4582]
[1765500615775,7.14490458,3226.3,3225.7,0.4671]
[1765500615984,7.63350458,3226.3,3225.5,0.001]
[1765500616169,7.63350458,3226.3,3225.5,0.4681]
[1765500616558,7.14490458,3226.3,3225.5,0.4681]
[1765500616781,7.14490458,3226.3,3226.2,0.4954]
[1765500616782,3.09952577,3226.3,3226.2,0.4954]
[1765500616988,3.59152577,3226.3,3226.2,0.4954]
[1765500618461,7.14530458,3226.3,3225.6,0.4671]
[1765500618885,6.69110458,3226.3,3225.6,0.4671]
[1765500619663,6.19910458,3226.3,3225.6,0.4671]
[1765500620019,0.492,3226.2,3225.6,0.4671]
[1765500620681,6.19910458,3226.3,3226.1,0.4954]
[1765500620892,6.19943584,3226.1,3225.6,0.4671]
[1765500621193,0.3581865,3226.7,3226.2,0.5553]
[1765500621194,3.09945887,3226.4,3226.2,0.5553]
[1765500621412,0.492,3226.3,3226.2,0.4954]
[1765500622266,3.09945887,3226.4,3226.2,0.4954]
[1765500622463,3.09945887,3226.4,3226.3,0.4954]
[1765500622691,3.59145887,3226.4,3226.3,0.4954]
[1765500624763,7.65066678,3226.4,3225.7,0.4671]
[1765500625592,0.4887,3226.3,3225.5,0.4681]
[1765500625798,5.76597019,3226.2,3225.5,0.4681]
[1765500626491,0.4887,3226.3,3225.5,0.001]
[1765500626667,8.34255569,3226.4,3225.6,0.4671]
[1765500628295,1.89975259,3226.3,3225.6,0.4671]
[1765500628472,1.89975259,3226.3,3225.5,0.001]
[1765500629296,1.89975259,3226.3,3225.5,0.4681]
[1765500630000,6.19924368,3226.2,3225.5,0.4681]
[1765500630197,6.68814368,3226.2,3225.5,0.4681]
[1765500632291,3.09962184,3226.2,3226.1,0.4954]
[1765500632474,4.35161786,3226.2,3226.1,0.4954]
[1765500632674,4.35161786,3226.2,3226.1,1.0224]
[1765500632675,3.59062184,3226.2,3226.1,1.0224]
[1765500633080,3.09962184,3226.2,3226.1,1.0224]
[1765500633281,6.19828306,3226.7,3226.1,1.0224]
[1765500633502,0.491,3226.6,3226.3,0.4954]
[1765500633707,0.491,3226.6,3226.1,0.527]
[1765500634001,0.491,3226.6,3226.2,0.4671]
[1765500634205,6.19866728,3226.5,3226.2,0.4671]
[1765500635107,0.491,3226.4,3226.2,0.4671]
[1765500635480,0.491,3226.5,3226.3,0.4954]
[1765500635808,0.491,3226.5,3226.1,0.0599]
[1765500636608,3.0994297,3226.4,3226.1,0.0599]
[1765500636990,3.0994297,3226.4,3225.6,3.10016727]
[1765500637288,6.6877594,3226.4,3225.7,0.36816426]
[1765500637495,6.6877594,3226.4,3225.6,0.4671]
[1765500637952,0.4889,3226.3,3225.5,0.001]
[1765500638796,3.09962184,3226.2,3225.5,0.4681]
[1765500639095,6.19828306,3226.7,3226.2,0.6798]
[1765500639302,3.09914153,3226.7,3226.4,0.4954]
[1765500639504,0.491,3226.6,3226.3,0.4671]
[1765500639709,3.09914153,3226.7,3226.6,0.4954]
[1765500639893,3.59014153,3226.7,3226.6,0.4954]
[1765500640791,4.16808794,3227.2,3226.6,0.4954]
[1765500640792,6.19751478,3227.1,3226.6,0.4954]
[1765500641102,1.03656027,3227.0,3226.6,0.4954]
[1765500641302,6.19751478,3227.1,3226.6,0.9625]
[1765500641303,0.491,3226.9,3226.6,0.9625]
[1765500641905,6.19751478,3227.1,3226.8,0.4954]
[1765500642104,3.09875739,3227.1,3227.0,0.4954]
[1765500642305,3.58975739,3227.1,3227.0,0.4954]
[1765500642628,7.15951478,3227.1,3226.7,0.4671]
[1765500643421,3.58975739,3227.1,3227.0,0.4858]
[1765500644129,6.68851478,3227.1,3226.7,0.4671]
[1765500644725,3.09875739,3227.1,3227.0,0.4858]
[1765500644909,3.58975739,3227.1,3227.0,0.4858]
[1765500645414,3.09875739,3227.1,3227.0,0.4858]
[1765500645598,6.19617076,3227.8,3227.0,0.9618]
[1765500645798,0.491,3227.7,3227.3,0.4858]